bitfinex-derivatives/quotes_BNBF0:USTF0_20250413
["timestamp","ask_amount","ask_price","bid_price","bid_amount"]
[1744537307483,0.30979389,593.95,592.92,0.33731363]
[1744537309185,0.30979389,593.97,592.92,0.33731363]
[1744537309378,0.30979389,593.96,592.92,0.33731363]
[1744537309684,0.30979389,593.95,592.92,0.33731363]
[1744537309881,0.30979389,593.97,592.92,0.33731363]
[1744537310085,0.30979389,593.96,592.92,0.33731363]
[1744537310386,0.30979389,593.95,592.92,0.33731363]
[1744537310781,0.29341338,593.96,592.92,0.33731363]
[1744537310984,0.30979092,593.95,592.92,0.33731363]
[1744537312085,0.30979092,593.97,592.92,0.33731363]
[1744537312286,0.29336885,593.94,592.92,0.33731363]
[1744537312480,0.30979092,593.93,592.92,0.33731363]
[1744537313986,0.29336885,593.94,592.92,0.33731363]
[1744537314186,0.30978775,593.93,592.92,0.33731363]
[1744537315182,0.30978775,593.97,592.92,0.33731363]
[1744537315383,0.30978775,593.96,592.92,0.33731363]
[1744537315586,0.30978775,593.97,592.92,0.33731363]
[1744537316381,0.29339359,593.96,592.92,0.33731363]
[1744537316685,0.30978775,593.95,592.92,0.33731363]
[1744537318186,0.30978775,593.94,592.92,0.33731363]
[1744537318385,0.29336885,593.94,592.92,0.33731363]
[1744537318591,0.30978775,593.93,592.92,0.33731363]
[1744537320490,0.29336885,593.94,592.92,0.33731363]
[1744537320690,0.30978542,593.93,592.92,0.33731363]
[1744537321090,0.30978542,593.97,592.92,0.33731363]
[1744537321387,0.29337133,593.92,592.92,0.33731363]
[1744537321591,0.30978542,593.91,592.92,0.33731363]
[1744537326088,0.29337133,593.92,592.92,0.33731363]
[1744537326293,0.30979163,593.91,592.92,0.33731363]
[1744537327295,0.30979163,593.9,592.92,0.33731363]
[1744537327595,0.30979163,593.89,592.92,0.33731363]
[1744537327890,0.30979163,593.97,592.92,0.33731363]
[1744537328095,0.30979163,593.96,592.92,0.33731363]
[1744537328295,0.30979207,593.95,592.92,0.33731363]
[1744537329697,0.30979215,593.94,592.92,0.33731363]
[1744537329897,0.30979215,593.95,592.92,0.33731363]
[1744537330096,0.30979215,593.94,592.92,0.33731363]
[1744537330292,0.29336885,593.93,592.92,0.33731363]
[1744537330696,0.30979215,593.92,592.92,0.33731363]
[1744537331197,0.29336885,593.93,592.92,0.33731363]
[1744537331397,0.30979192,593.92,592.92,0.33731363]
[1744537332797,0.29336885,593.93,592.92,0.33731363]
[1744537333098,0.3097918,593.92,592.92,0.33731363]
[1744537333294,0.3097918,593.91,592.92,0.33731363]
[1744537333699,0.3097918,593.9,592.92,0.33731363]
[1744537333895,0.3097918,593.89,592.92,0.33731363]
[1744537334100,0.3097918,593.91,592.92,0.33731363]
[1744537334301,0.3097918,593.9,592.92,0.33731363]
[1744537334495,0.3097918,593.91,592.92,0.33731363]
[1744537334801,0.3097918,593.9,592.92,0.33731363]
[1744537335002,0.3097918,593.91,592.92,0.33731363]
[1744537335200,0.3097918,593.9,592.92,0.33731363]
[1744537335398,0.3097918,593.89,592.92,0.33731363]
[1744537335698,0.3097918,593.88,592.92,0.33731363]
[1744537335902,0.3097918,593.91,592.92,0.33731363]
[1744537336096,0.33671167,593.98,592.92,0.33731363]
[1744537336299,0.2933738,593.87,592.92,0.33731363]
[1744537336500,0.30979191,593.86,592.92,0.33731363]
[1744537336697,0.30979191,593.85,592.92,0.33731363]
[1744537336900,0.30979191,593.97,592.92,0.33731363]
[1744537337097,0.30979191,593.96,592.92,0.33731363]
[1744537337301,0.30979191,593.97,592.92,0.33731363]
[1744537337499,0.60315829,593.96,592.92,0.33731363]
[1744537337703,0.30979191,593.95,592.92,0.33731363]
[1744537339204,0.30979191,593.97,592.92,0.33731363]
[1744537339399,0.29336885,593.94,592.92,0.33731363]
[1744537339599,0.30979191,593.93,592.92,0.33731363]
[1744537342209,0.30979191,593.97,592.92,0.33731363]
[1744537343310,0.29338988,593.96,592.92,0.33731363]
[1744537343509,0.30979191,593.95,592.92,0.33731363]
[1744537345216,0.30979191,593.97,592.92,0.33731363]
[1744537345416,0.30979191,593.94,592.92,0.33731363]
[1744537345716,0.30979191,593.93,592.92,0.33731363]
[1744537346017,0.30978948,593.92,592.92,0.33731363]
[1744537346312,0.30978948,593.91,592.92,0.33731363]
[1744537346717,0.30978929,593.9,592.92,0.33731363]
[1744537347016,0.30978929,593.89,592.92,0.33731363]
[1744537347213,0.30978929,593.88,592.92,0.33731363]
[1744537347414,0.30978929,593.91,592.92,0.33731363]
[1744537347610,0.30978929,593.9,592.92,0.33731363]
[1744537347813,0.30978929,593.91,592.92,0.33731363]
[1744537348015,0.30978929,593.9,592.92,0.33731363]
[1744537348214,0.30978929,593.97,592.92,0.33731363]
[1744537348414,0.2933738,593.9,592.92,0.33731363]
[1744537348612,0.30978929,593.89,592.92,0.33731363]
[1744537348916,0.30978929,593.88,592.92,0.33731363]
[1744537349213,0.30978925,593.87,592.92,0.33731363]
[1744537349417,0.29336638,593.87,592.92,0.33731363]
[1744537349618,0.30978925,593.86,592.92,0.33731363]
[1744537350919,0.30978929,593.85,592.92,0.33731363]
[1744537351114,0.29337998,593.85,592.92,0.33731363]
[1744537351318,0.30978929,593.84,592.92,0.33731363]
[1744537352323,0.29337998,593.85,592.92,0.33731363]
[1744537352522,0.30978906,593.83,592.92,0.33731363]
[1744537352817,0.30978906,593.82,592.92,0.33731363]
[1744537353021,0.30978906,593.84,592.92,0.33731363]
[1744537353322,0.30978906,593.83,592.92,0.33731363]
[1744537353620,0.30978906,593.82,592.92,0.33731363]
[1744537353823,0.30978906,593.84,592.92,0.33731363]
[1744537354024,0.30978903,593.83,592.92,0.33731363]
[1744537354321,0.30978903,593.82,592.92,0.33731363]
[1744537354521,0.30978903,593.97,592.92,0.33731363]
[1744537355322,0.29339359,593.96,592.92,0.33731363]
[1744537355716,0.30978948,593.95,592.92,0.33731363]
[1744537357323,0.30978948,593.94,592.92,0.33731363]
[1744537357524,0.30978948,593.93,592.92,0.33731363]
[1744537357722,0.30978948,593.92,592.92,0.33731363]
[1744537357922,0.30978948,593.91,592.92,0.33731363]
[1744537358121,0.30978948,593.97,592.92,0.33731363]
[1744537358320,0.29338988,593.91,592.92,0.33731363]
[1744537358521,0.30978948,593.9,592.92,0.33731363]
[1744537360228,0.30978948,593.97,592.92,0.33731363]
[1744537361329,0.29338864,593.96,592.92,0.33731363]
[1744537361525,0.30978948,593.95,592.92,0.33731363]
[1744537362830,1.28668442,593.92,592.92,0.33731363]
[1744537363123,0.30978948,593.91,592.92,0.33731363]
[1744537363429,0.60316328,593.91,592.92,0.33731363]
[1744537363629,0.3097892,593.9,592.92,0.33731363]
[1744537365133,0.2933738,593.91,592.92,0.33731363]
[1744537365328,0.30978932,593.89,592.92,0.33731363]
[1744537365526,0.2933738,593.91,592.92,0.33731363]
[1744537365730,0.3097893,593.9,592.92,0.33731363]
[1744537366130,0.3097893,593.94,592.92,0.33731363]
[1744537366432,0.29337504,593.89,592.92,0.33731363]
[1744537366730,0.3097893,593.88,592.92,0.33731363]
[1744537368529,0.29337504,593.89,592.92,0.33731363]
[1744537368727,0.30978946,593.88,592.92,0.33731363]
[1744537369234,0.30978946,593.87,592.92,0.33731363]
[1744537369431,0.29337751,593.87,592.92,0.33731363]
[1744537369629,0.30978946,593.86,592.92,0.33731363]
[1744537371735,0.29337751,593.87,592.92,0.33731363]
[1744537371931,0.30978442,593.86,592.92,0.33731363]
[1744537372336,0.30978442,593.97,592.92,0.33731363]
[1744537372532,0.30978442,593.96,592.92,0.33731363]
[1744537372833,0.30978442,593.95,592.92,0.33731363]
[1744537373032,0.30978442,593.97,592.92,0.33731363]
[1744537373236,0.29339235,593.94,592.92,0.33731363]
[1744537373435,0.30978442,593.93,592.92,0.33731363]
[1744537374836,0.29339235,593.94,592.92,0.33731363]
[1744537375033,0.30978055,593.93,592.92,0.33731363]
[1744537375238,0.29337133,593.92,592.92,0.33731363]
[1744537375435,0.30978055,593.91,592.92,0.33731363]
[1744537376439,0.29337133,593.92,592.92,0.33731363]
[1744537376640,0.30978942,593.91,592.92,0.33731363]
[1744537378238,0.30978942,593.9,592.92,0.33731363]
[1744537378539,0.30978942,593.89,592.92,0.33731363]
[1744537378737,0.30978942,593.95,592.92,0.33731363]
[1744537378938,0.30978942,593.94,592.92,0.33731363]
[1744537379138,0.30978942,593.95,592.92,0.33731363]
[1744537379339,0.29338493,593.93,592.92,0.33731363]
[1744537379741,0.30978904,593.92,592.92,0.33731363]
[1744537380639,0.29338493,593.93,592.92,0.33731363]
[1744537380845,0.30980041,593.92,592.92,0.33731363]
[1744537381139,0.30980077,593.91,592.92,0.33731363]
[1744537382342,0.29337627,593.92,592.92,0.33731363]
[1744537382542,0.30979714,593.91,592.92,0.33731363]
[1744537383943,0.29337627,593.92,592.92,0.33731363]
[1744537384142,0.30978875,593.91,592.92,0.33731363]
[1744537384341,0.30978875,593.9,592.92,0.33731363]
[1744537384542,0.30978875,593.89,592.92,0.33731363]
[1744537384743,0.30978875,593.97,592.92,0.33731363]
[1744537384948,0.64651176,593.96,592.92,0.33731363]
[1744537385146,0.64651743,593.95,592.92,0.33731363]
[1744537385447,0.30978875,593.94,592.92,0.33731363]
[1744537385651,0.3097914,593.93,592.92,0.33731363]
[1744537385845,0.3097914,593.94,592.92,0.33731363]
[1744537387051,0.33672868,593.95,592.92,0.33731363]
[1744537387248,0.30979166,593.94,592.92,0.33731363]
[1744537388347,0.29338122,593.93,592.92,0.33731363]
[1744537388550,0.30979166,593.92,592.92,0.33731363]
[1744537390251,0.29338369,593.91,592.92,0.33731363]
[1744537390551,0.30979103,593.9,592.92,0.33731363]
[1744537393253,0.30979103,593.94,592.92,0.33731363]
[1744537393454,0.30979169,593.93,592.92,0.33731363]
[1744537393654,0.30979169,593.92,592.92,0.33731363]
[1744537393849,0.33672868,593.95,592.92,0.33731363]
[1744537393850,0.30979169,593.91,592.92,0.33731363]
[1744537394049,0.30979169,593.93,592.92,0.33731363]
[1744537394350,0.29339359,593.9,592.92,0.33731363]
[1744537394655,0.30979169,593.89,592.92,0.33731363]
[1744537394950,0.29339359,593.9,592.92,0.33731363]
[1744537395255,0.30979187,593.89,592.92,0.33731363]
[1744537396163,0.30979187,593.93,592.92,0.33731363]
[1744537396460,0.2933874,593.88,592.92,0.33731363]
[1744537396658,0.30979187,593.87,592.92,0.33731363]
[1744537398063,0.2933874,593.88,592.92,0.33731363]
[1744537398261,0.30979233,593.87,592.92,0.33731363]
[1744537399260,0.60318221,593.86,592.92,0.33731363]
[1744537399457,0.30979233,593.85,592.92,0.33731363]
[1744537401263,0.29338988,593.86,592.92,0.33731363]
[1744537401464,0.30979324,593.85,592.92,0.33731363]
[1744537402260,0.30979324,593.94,592.92,0.33731363]
[1744537402564,0.30979324,593.93,592.92,0.33731363]
[1744537402764,0.33672868,593.95,592.92,0.33731363]
[1744537402967,0.30979556,593.94,592.92,0.33731363]
[1744537403266,0.60318667,593.94,592.92,0.33731363]
[1744537403565,0.30979556,593.93,592.92,0.33731363]
[1744537405964,0.29339111,593.94,592.92,0.33731363]
[1744537406268,0.30979206,593.93,592.92,0.33731363]
[1744537408165,0.30979206,593.94,592.92,0.33731363]
[1744537408470,0.29338246,593.92,592.92,0.33731363]
[1744537408665,0.30979206,593.91,592.92,0.33731363]
[1744537409167,0.29338246,593.92,592.92,0.33731363]
[1744537409365,0.30979079,593.91,592.92,0.33731363]
[1744537413971,0.29338246,593.92,592.92,0.33731363]
[1744537414270,0.30979089,593.91,592.92,0.33731363]
[1744537414471,0.30979089,593.94,592.92,0.33731363]
[1744537414671,0.30979089,593.93,592.92,0.33731363]
[1744537414872,0.30979089,593.94,592.92,0.33731363]
[1744537415472,0.29339482,593.93,592.92,0.33731363]
[1744537415669,0.30979089,593.92,592.92,0.33731363]
[1744537417175,0.29339482,593.93,592.92,0.33731363]
[1744537417470,1.59647627,593.92,592.92,0.33731363]
[1744537417673,0.30979185,593.91,592.92,0.33731363]
[1744537420478,1.28668442,593.92,592.92,0.33731363]
[1744537423480,0.33672868,593.95,592.92,0.33731363]
[1744537424279,0.29330086,593.94,592.92,0.33731363]
[1744537425881,0.30970636,593.93,592.93,0.30607105]
[1744537426281,0.30970636,593.94,592.93,0.30607105]
[1744537427483,0.29330951,593.93,592.93,0.30607105]
[1744537427681,0.30970636,593.92,592.93,0.30607105]
[1744537428182,0.29330951,593.93,592.92,0.33731363]
[1744537428885,0.33672868,593.95,592.92,0.33731363]
[1744537429280,0.29332187,593.92,592.92,0.33731363]
[1744537432087,0.33672868,593.95,592.92,0.33731363]
[1744537432487,0.29328973,593.93,592.92,0.33731363]
[1744537435187,0.33672868,593.95,592.92,0.33731363]
[1744537435587,1.28668442,595.06,592.92,0.33731363]
[1744537435788,0.33615705,594.96,592.92,0.33731363]
[1744537435988,0.30964003,594.95,592.92,0.33731363]
[1744537436187,0.33621921,594.85,592.92,0.33731363]
[1744537436488,0.30964003,594.84,592.92,0.33731363]
[1744537436784,0.33623617,594.82,592.92,0.33731363]
[1744537436989,0.30964003,594.81,592.92,0.33731363]
[1744537437188,0.33625313,594.79,592.92,0.33731363]
[1744537437489,0.30964003,594.78,592.92,0.33731363]
[1744537437784,0.33627009,594.76,592.92,0.33731363]
[1744537437983,0.3096343,594.75,592.92,0.33731363]
[1744537438184,0.33628705,594.73,592.92,0.33731363]
[1744537438486,0.3096343,594.72,592.93,0.30599557]
[1744537438791,0.3096343,594.72,592.94,0.33730225]
[1744537438990,0.3096343,594.72,592.95,0.30599557]
[1744537439589,0.33630401,594.7,592.96,0.33729087]
[1744537439787,0.3096343,594.69,592.97,0.30599557]
[1744537439984,0.3096343,594.69,592.98,0.3372795]
[1744537440184,0.33632098,594.67,592.99,0.30599557]
[1744537440490,0.3096343,594.66,593.0,0.33726812]
[1744537440788,0.33633795,594.64,593.01,0.30599557]
[1744537441089,0.30959734,594.63,593.02,0.6298497]
[1744537441290,0.30959734,594.62,593.03,0.30596223]
[1744537441489,0.30959734,594.61,593.03,0.30596223]
[1744537441686,0.30959734,594.62,593.04,0.33724537]
[1744537441891,0.33636623,594.59,593.05,0.30596223]
[1744537442091,0.30959734,594.58,593.06,0.337234]
[1744537442387,0.3363832,594.56,593.07,0.30596223]
[1744537442586,0.30959734,594.55,593.08,0.33722263]
[1744537442786,0.64599186,594.54,593.09,0.30596223]
[1744537442983,0.64599752,594.53,593.1,0.33721126]
[1744537443185,0.64600318,594.52,593.11,0.30596223]
[1744537443386,0.64600883,594.51,593.11,0.30596223]
[1744537443593,0.30959734,594.5,593.11,0.30596223]
[1744537443791,0.64602015,594.49,593.11,0.30596223]
[1744537443992,0.64602581,594.48,593.11,0.30596223]
[1744537444188,0.64603147,594.47,593.11,0.30596223]
[1744537444393,0.64603713,594.46,593.11,0.6431678]
[1744537444688,0.29315879,594.48,593.12,0.30596223]
[1744537444689,0.64604279,594.45,593.12,0.30596223]
[1744537444887,0.64604845,594.44,593.12,0.30596223]
[1744537445090,0.64605411,594.43,593.12,0.30596223]
[1744537445290,0.64605977,594.42,593.11,0.33720557]
[1744537445487,0.33646809,594.41,593.11,0.33720557]
[1744537445688,0.30963806,594.4,593.11,0.33720557]
[1744537445893,0.33647941,594.39,593.11,0.33720557]
[1744537446088,0.30963806,594.38,593.11,0.33720557]
[1744537446294,0.33649073,594.37,593.11,0.33720557]
[1744537446592,0.30963806,594.36,593.11,0.33720557]
[1744537446790,0.33650206,594.35,593.11,0.33720557]
[1744537446991,0.30963806,594.34,593.11,0.33720557]
[1744537447192,0.33651338,594.33,593.11,0.33720557]
[1744537447394,0.30963806,594.32,593.11,0.33720557]
[1744537447590,0.64616276,594.31,593.12,0.30665856]
[1744537447789,0.64616843,594.3,593.12,0.30665856]
[1744537448088,0.64617409,594.29,593.12,0.30665856]
[1744537448288,0.64617975,594.28,593.12,0.30665856]
[1744537448490,0.64618542,594.27,593.12,0.30665856]
[1744537448695,0.30963806,594.26,593.12,0.30665856]
[1744537450294,0.29320695,594.25,593.12,0.30665856]
[1744537450495,0.30963806,594.24,593.12,0.30665856]
[1744537451794,0.29320695,594.25,593.11,0.33720557]
[1744537451999,0.30960656,594.24,593.12,0.30660995]
[1744537453198,0.60280116,594.23,593.12,0.30660995]
[1744537453399,0.2931946,594.23,593.11,0.33720557]
[1744537453595,0.30960588,594.22,593.12,0.30660928]
[1744537456601,0.2931946,594.23,593.11,0.33720557]
[1744537456798,0.30959443,594.22,593.12,0.30659785]
[1744537457701,0.30959443,594.22,593.12,0.64379774]
[1744537457901,0.30959443,594.22,593.13,0.64379205]
[1744537458101,0.30959443,594.22,593.14,0.64378637]
[1744537458297,0.30959443,594.22,593.15,0.64378068]
[1744537458502,0.30959443,594.22,593.16,0.643775]
[1744537458697,0.30959443,594.22,593.17,0.30659785]
[1744537459202,0.33654736,594.27,593.17,0.30659785]
[1744537459203,0.60276556,594.21,593.17,0.30659785]
[1744537459497,0.30959443,594.2,593.17,0.30659785]
[1744537462898,0.29317113,594.21,593.16,0.33717715]
[1744537463104,0.30957632,594.2,593.17,0.30657977]
[1744537465098,0.30957632,594.26,593.17,0.30657977]
[1744537465299,0.2931736,594.19,593.17,0.30657977]
[1744537465598,0.30957632,594.18,593.17,0.30657977]
[1744537465800,0.30957632,594.26,593.17,0.30657977]
[1744537466001,0.30957632,594.25,593.17,0.30657977]
[1744537466202,0.30957632,594.26,593.17,0.30657977]
[1744537466499,0.29316619,594.25,593.17,0.30657977]
[1744537466698,0.30957632,594.24,593.17,0.30657977]
[1744537468400,0.60274498,594.23,593.17,0.30657977]
[1744537468598,0.30957632,594.22,593.17,0.30657977]
[1744537469304,0.29316866,594.23,593.16,0.33717715]
[1744537469603,0.30958411,594.22,593.17,0.30658755]
[1744537471099,0.30958411,594.26,593.17,0.30658755]
[1744537471304,0.29316619,594.21,593.17,0.30658755]
[1744537471504,0.30958411,594.2,593.17,0.30658755]
[1744537472399,0.29316619,594.21,593.17,0.30658755]
[1744537472605,0.30958153,594.2,593.18,0.30658497]
[1744537472904,0.30958153,594.2,593.19,0.30658497]
[1744537473100,0.30958153,594.2,593.17,0.30658497]
[1744537473304,0.30958153,594.2,593.16,0.33717715]
[1744537473505,0.30958153,594.2,593.17,0.30658823]
[1744537474006,0.29316619,594.21,593.16,0.33717715]
[1744537474205,0.30958516,594.2,593.17,0.3065886]
[1744537477203,0.30958516,594.26,593.17,0.3065886]
[1744537477406,0.2931736,594.19,593.17,0.3065886]
[1744537477707,0.30958516,594.18,593.17,0.3065886]
[1744537477901,0.30958516,594.17,593.16,0.33717715]
[1744537478101,0.30958516,594.26,593.16,0.33717715]
[1744537478306,0.29318225,594.16,593.16,0.33717715]
[1744537478507,0.30958516,594.15,593.16,0.33717715]
[1744537478902,0.29318225,594.16,593.16,0.33717715]
[1744537479106,0.30959066,594.15,593.16,0.33717715]
[1744537480202,0.30959066,594.14,593.16,0.33717715]
[1744537480408,0.2931946,594.14,593.16,0.33717715]
[1744537480805,0.30960252,594.13,593.16,0.33717715]
[1744537482209,0.2931946,594.14,593.16,0.33717715]
[1744537482410,0.30960866,594.13,593.16,0.33717715]
[1744537483316,0.29320572,594.12,593.16,0.33717715]
[1744537483516,0.30960866,594.11,593.16,0.33717715]
[1744537484915,0.30960866,594.11,593.17,0.30659371]
[1744537486318,0.30960866,594.26,593.17,0.30659371]
[1744537486513,0.30960866,594.25,593.17,0.30659371]
[1744537486812,0.30960866,594.26,593.17,0.30659371]
[1744537487020,0.30959559,594.25,593.18,0.30659901]
[1744537487218,0.30959559,594.26,593.17,0.30659901]
[1744537487413,0.60277413,594.25,593.18,0.30659901]
[1744537487715,0.30959559,594.24,593.17,0.30659901]
[1744537487919,0.30959559,594.24,593.18,0.30659901]
[1744537488115,0.30959559,594.24,593.17,0.30659901]
[1744537488315,0.30959559,594.24,593.16,0.33717715]
[1744537488520,0.29317854,594.25,593.16,0.33717715]
[1744537488721,0.30959387,594.24,593.17,0.30659728]
[1744537489225,0.30959387,594.23,593.16,0.33717715]
[1744537489421,0.29319089,594.23,593.16,0.33717715]
[1744537489623,0.30959387,594.22,593.16,0.33717715]
[1744537493325,0.29319089,594.23,593.16,0.33717715]
[1744537493625,0.30962982,594.22,593.16,0.33717715]
[1744537495326,0.30962982,594.26,593.16,0.33717715]
[1744537495527,0.30962982,594.25,593.16,0.33717715]
[1744537495728,0.30962982,594.26,593.16,0.33717715]
[1744537495923,0.30962982,594.25,593.16,0.33717715]
[1744537496125,0.30962982,594.24,593.16,0.33717715]
[1744537496423,0.30962982,594.23,593.16,0.33717715]
[1744537496621,0.30962982,594.24,593.16,0.33717715]
[1744537496825,0.30962775,594.23,593.16,0.33717715]
[1744537497023,0.30962775,594.22,593.16,0.33717715]
[1744537497223,0.30962775,594.24,593.16,0.33717715]
[1744537497426,0.30962775,594.23,593.16,0.33717715]
[1744537497622,0.30962775,594.24,593.16,0.33717715]
[1744537498123,0.30962775,594.23,593.16,0.33717715]
[1744537498326,0.30962775,594.22,593.17,0.30662452]
[1744537500435,0.30962775,594.22,593.16,0.33717715]
[1744537501332,0.30962775,594.26,593.16,0.33717715]
[1744537501533,0.30962775,594.25,593.16,0.33717715]
[1744537501728,0.33654736,594.27,593.16,0.33717715]
[1744537501729,0.30962775,594.26,593.16,0.33717715]
[1744537502030,0.30962775,594.25,593.16,0.33717715]
[1744537502236,0.29324895,594.25,593.16,0.33717715]
[1744537502433,0.30962775,594.24,593.16,0.33717715]
[1744537502933,0.29324895,594.25,593.16,0.33717715]
[1744537503129,0.64622087,594.24,593.16,0.33717715]
[1744537503332,0.30965652,594.23,593.16,0.33717715]
[1744537503834,0.33657567,594.22,593.16,0.33717715]
[1744537504033,0.30965652,594.21,593.16,0.33717715]
[1744537504233,0.336587,594.2,593.16,0.33717715]
[1744537504533,0.30965652,594.19,593.16,0.33717715]
[1744537505334,0.29328232,594.18,593.16,0.33717715]
[1744537505534,0.30965652,594.17,593.16,0.33717715]
[1744537505833,0.30966302,594.16,593.16,0.33717715]
[1744537506032,0.30966302,594.17,593.16,0.33717715]
[1744537506233,0.30966302,594.16,593.16,0.33717715]
[1744537506427,0.30966302,594.15,593.16,0.33717715]
[1744537506729,0.30966302,594.14,593.16,0.33717715]
[1744537506929,0.30966302,594.17,593.16,0.33717715]
[1744537507238,0.29326007,594.13,593.16,0.33717715]
[1744537507433,0.30967995,594.12,593.16,0.33717715]
[1744537508635,0.30967995,594.12,592.8,0.29332311]
[1744537508835,0.29326007,594.13,592.8,0.29332311]
[1744537509032,0.30973798,594.12,592.81,0.64411742]
[1744537509236,0.30973798,594.12,592.82,0.3067412]
[1744537509432,0.30973798,594.12,592.83,0.33736484]
[1744537509836,0.33663799,594.11,592.83,0.33736484]
[1744537510032,0.30973798,594.1,592.83,0.33736484]
[1744537510235,0.33664932,594.09,592.83,0.33736484]
[1744537510436,0.30973798,594.08,592.83,0.33736484]
[1744537510735,0.64639297,594.08,592.83,0.33736484]
[1744537510936,0.30973798,594.07,592.83,0.33736484]
[1744537511136,0.30973798,594.07,592.84,0.30674896]
[1744537511334,0.60310807,594.07,592.84,0.30674896]
[1744537511534,0.30973798,594.06,592.84,0.30674896]
[1744537513441,0.30973798,594.07,592.84,0.30674896]
[1744537513741,0.30973798,594.06,592.85,0.33735346]
[1744537513941,0.30973798,594.07,592.86,0.30674896]
[1744537514241,0.29329344,594.05,592.87,0.33734208]
[1744537514435,0.30973798,594.04,592.88,0.30674896]
[1744537514745,0.30973798,594.04,592.89,0.3373307]
[1744537514944,0.30973798,594.04,592.9,0.30674896]
[1744537515143,0.30973798,594.04,592.9,0.64407397]
[1744537515340,0.30973798,594.04,592.91,0.30674896]
[1744537516246,0.30973798,594.04,592.92,0.33731363]
[1744537516545,0.30973798,594.04,592.93,0.30674896]
[1744537516739,0.30973798,594.04,592.94,0.33730225]
[1744537516939,0.30973798,594.04,592.95,0.30674896]
[1744537517145,0.30973798,594.04,592.95,0.64404552]
[1744537517437,0.30973798,594.04,592.96,0.30674896]
[1744537519347,0.60300918,594.03,592.96,0.30674896]
[1744537519547,0.30973798,594.02,592.96,0.30674896]
[1744537521642,0.30968292,594.01,592.95,0.33729656]
[1744537521842,0.30968292,594.02,592.96,0.30668621]
[1744537522044,0.30968292,594.01,592.96,0.30668621]
[1744537522245,0.30968292,594.0,592.96,0.30668621]
[1744537522447,0.30968292,594.07,592.96,0.30668621]
[1744537523343,0.29326749,594.06,592.96,0.30668621]
[1744537523547,0.30968292,594.05,592.96,0.30668621]
[1744537525345,0.30968292,594.07,592.96,0.30668621]
[1744537525550,0.30968292,594.04,592.96,0.30668621]
[1744537525846,0.30968292,594.03,592.96,0.30668621]
[1744537526050,0.30968292,594.07,592.96,0.30668621]
[1744537526352,0.29326749,594.02,592.95,0.33729656]
[1744537526551,0.30968476,594.01,592.96,0.30668805]
[1744537528452,0.30968476,594.07,592.96,0.30668805]
[1744537528645,0.30968476,594.06,592.96,0.30668805]
[1744537528846,0.30968476,594.05,592.96,0.30668805]
[1744537529047,0.30968476,594.07,592.96,0.30668805]
[1744537529351,0.29326749,594.04,592.96,0.30668805]
[1744537529650,0.30968476,594.03,592.96,0.30668805]
[1744537531148,0.30968476,594.07,592.96,0.30668805]
[1744537531350,0.29327243,594.02,592.97,0.30667758]
[1744537531553,0.29327243,594.02,592.98,0.3372795]
[1744537531554,0.30967428,594.01,592.98,0.3372795]
[1744537531854,0.30967428,594.01,592.99,0.30667758]
[1744537532055,0.30967428,594.01,593.0,0.33726812]
[1744537532258,0.30967428,594.01,593.01,0.30667758]
[1744537532755,0.30967428,594.01,593.01,0.64394002]
[1744537532955,0.30967428,594.01,593.02,0.64393433]
[1744537533156,0.30967428,594.01,593.03,0.64392864]
[1744537533352,0.30967428,594.01,593.04,0.64392295]
[1744537533554,0.30967428,594.01,593.05,0.30667758]
[1744537533755,0.29327243,594.02,593.05,0.64391727]
[1744537533955,0.29327243,594.02,593.06,0.64391158]
[1744537534152,0.29327243,594.02,593.07,0.6439059]
[1744537534355,0.29327243,594.02,593.08,0.64390021]
[1744537534557,0.29327243,594.02,593.09,0.30667758]
[1744537535958,0.29327243,594.02,593.08,0.33722263]
[1744537536153,0.30962443,594.01,593.09,0.30663668]
[1744537540162,0.30962443,594.07,593.09,0.30663668]
[1744537540363,0.29322672,594.06,593.1,0.33721126]
[1744537540560,0.30962443,594.05,593.11,0.30663668]
[1744537540757,0.33665499,594.08,593.1,0.33721126]
[1744537540961,1.28668442,594.54,593.11,0.30639077]
[1744537541162,0.30949228,594.53,593.11,0.30639077]
[1744537541458,0.60258564,594.53,593.11,0.30639077]
[1744537541659,1.28668442,594.39,593.11,0.30639077]
[1744537542363,1.28668442,594.39,593.13,0.3371942]
[1744537542558,1.28668442,594.39,593.14,0.30639077]
[1744537543363,0.3094884,594.38,593.14,0.30639077]
[1744537543959,0.3094884,595.3,593.14,0.30639077]
[1744537544158,0.3360215,595.2,593.14,0.30639077]
[1744537544463,0.3094884,595.19,593.15,0.33718283]
[1744537544763,0.33608361,595.09,593.16,0.30639077]
[1744537544960,0.3094884,595.08,593.17,0.33717146]
[1744537545160,0.33610056,595.06,593.18,0.30639077]
[1744537545358,0.3094884,595.05,593.19,0.3371601]
[1744537545561,0.3094884,595.05,593.2,0.30639077]
[1744537545762,0.3361175,595.03,593.21,0.33714873]
[1744537545965,1.28668442,595.01,593.21,0.33714873]
[1744537546158,0.3361401,594.99,593.21,0.33714873]
[1744537546459,0.3094884,594.98,593.22,0.30639013]
[1744537546762,0.33615705,594.96,593.23,0.33713736]
[1744537546963,0.3094884,594.95,593.24,0.30639013]
[1744537547162,0.3094884,594.95,593.25,0.337126]
[1744537547759,0.336174,594.93,593.25,0.337126]
[1744537547959,0.3094884,594.92,593.25,0.337126]
[1744537548163,0.33619095,594.9,593.25,0.337126]